Cogmind - Beta 14 @@@ ROGUE MODE // 2025.01.13 @ 11:28:48 Player: Corvi Result: Self-destructed Performance ------------- Evolutions (1) 500 Regions Visited (3) 600 Robots Destroyed (17) 85 Value Destroyed (433) 433 Prototype IDs (0) 0 Alien Tech Used (0) 0 Bonus (0) 0 TOTAL SCORE: 1618 Bonus ------- None Cogmind --------- Core Integrity 374/400 Matter 275/300 Energy 160/160 System Corruption 0% Temperature Cool (0) Movement Treading (160) Location -9/Materials Parts ------- > --- POWER (1) -------- Light Nuclear Core > --- PROPULSION (2) --- Light Treads Light Treads > --- UTILITY (4) ------ Small Storage Unit Structural Scanner Targeting Computer > --- WEAPON (2) ------- Rocket Launcher > --- INVENTORY (8) ---- Ion Engine Hacking Suite Rocket Launcher Rocket Launcher Rocket Launcher Heavy Explosive Trap Peak State ------------ > --- POWER ------------ Light Nuclear Core > --- PROPULSION ------- Light Treads Light Treads > --- UTILITY ---------- Small Storage Unit Structural Scanner Targeting Computer > --- WEAPON ----------- EM Shotgun Rocket Launcher > --- INVENTORY -------- Ion Engine Hacking Suite Rocket Launcher Rocket Launcher Rocket Launcher Heavy Explosive Trap [Rating: 13] Favorites ----------- Power Light Nuclear Core Engine Light Ion Engine Power Core Light Nuclear Core Propulsion Light Treads Treads Light Treads Utility Small Storage Unit Device Disposable Heat Sink Storage Small Storage Unit Processor Targeting Computer Weapon EM Shotgun Energy Gun EM Shotgun Ballistic Gun Assault Rifle Launcher Rocket Launcher Build | -11 -10 -10 -9 ------- Run | Yrd Mat Min Mat Slots Evolved 2 | . . . 2 Power . | . . . . Propulsion . | . . . . Utility 2 | . . . 2 Weapon . | . . . . Parts Attached 18 | 6 9 2 1 Power 4 | 1 2 1 . Engine 2 | 1 1 . . Core 2 | . 1 1 . Reactor . | . . . . Propulsion 3 | 2 1 . . Treads 3 | 2 1 . . Leg . | . . . . Wheel . | . . . . Hover . | . . . . Flight . | . . . . Utility 4 | 1 2 . 1 Device 2 | . 1 . 1 Storage 1 | 1 . . . Processor 1 | . 1 . . Hackware . | . . . . Protection . | . . . . Artifact . | . . . . Weapon 7 | 2 4 1 . Energy Gun 5 | 1 4 . . Energy Cannon . | . . . . Ballistic Gun 1 | 1 . . . Ballistic Cannon . | . . . . Launcher 1 | . . 1 . Special Weapon . | . . . . Impact Weapon . | . . . . Slashing Weapon . | . . . . Piercing Weapon . | . . . . Special Melee Weapon . | . . . . Unidentified Prototypes . | . . . . Parts Lost 4 | . 2 1 1 Power . | . . . . Propulsion . | . . . . Utility . | . . . . Weapon 4 | . 2 1 1 Highest Loss Streak 1 | . 1 1 1 To Critical Strikes . | . . . . Average Slot Usage (%) 98 | . 99 98 86 Engine 5 | . 8 . . Core 7 | . 5 13 11 Treads 27 | . 28 28 22 Device 1 | . 2 . 11 Storage 13 | . 14 14 11 Processor 12 | . 11 14 11 Energy Gun 26 | . 27 25 9 Peak Build Rating 13 | 6 12 12 13 Average Rating 10 | 4 10 11 12 On Entrance 7 | . 6 12 12 Naked Turns . | . . . . Heaviest Build 18 | 12 16 17 18 Greatest Support 40 | 40 40 40 40 Greatest Overweight (x) . | . . . . Average Overweight (x) . | . . . . Largest Inventory Capacity 8 | 8 8 8 8 Average Capacity 7 | 7 8 8 8 Most Carried 8 | 2 8 8 6 Average Carried 7 | 1 7 7 6 Final Capacity 8 | 8 8 8 8 Final Carried 8 | 2 8 7 6 Class Distribution -------------------- 100% | Mutant Dominant Class ---------------- Mutant | -10/Materials Mutant | -10/Mines Mutant | -9/Materials Resources | -11 -10 -10 -9 ----------- Run | Yrd Mat Min Mat Matter Collected 345 | 210 135 . . Remotely . | . . . . Salvage Created 554 | . 402 152 . Parts 40 | . 29 11 . Haulers Intercepted 1 | . 1 . . Recyclers Shooed . | . . . . Parts Field Recycled . | . . . . Retrieved Matter . | . . . . Parts Self-Destructed . | . . . . Prevented . | . . . . Kills | -11 -10 -10 -9 ------- Run | Yrd Mat Min Mat Combat Hostiles Destroyed 11 | . 8 3 . Guns 11 | . 8 3 . Classes Destroyed 5 | . 5 . . Hauler 1 | . 1 . . Operator 2 | . 2 . . Watcher 3 | . 3 . . Swarmer 3 | . 3 . . Grunt 8 | . 5 3 . Best Kill Streak 3 | . 3 1 . Combat Bots Only 3 | . 3 1 . Max Kills in Single Turn 1 | . 1 1 . Gunslinging . | . . . . Exploded . | . . . . Melee . | . . . . Uniques/NPCs Destroyed . | . . . . Combat | -11 -10 -10 -9 -------- Run | Yrd Mat Min Mat Hostile Shots Fired 54 | . 31 9 14 Missed 13 | . 4 4 5 Damage Taken 544 | . 332 97 115 Core 98 | . 72 . 26 Absorbed by Shields . | . . . . Core Remaining (%) 85 | 100 . 71 . Volleys Fired 35 | . 26 9 . Largest 2 | . 2 2 . Hottest 90 | . 90 90 . Shots Fired 62 | . 49 13 . Gun 62 | . 49 13 . Cannon . | . . . . Launcher . | . . . . Special . | . . . . Kinetic . | . . . . Thermal . | . . . . Explosive . | . . . . Electromagnetic 62 | . 49 13 . Robot Hit Streak 18 | . 15 18 . Robot Miss Streak 3 | . 3 2 . Penetration Max . | . . . . Secondary Targets . | . . . . Shots Hit Robots 54 | . 42 12 . Core Hits 34 | . 25 9 . Critical Kills . | . . . . Critical Parts Destroyed . | . . . . Critical Strikes . | . . . . Melee Attacks . | . . . . Impact . | . . . . Slashing . | . . . . Piercing . | . . . . Sneak Attacks . | . . . . Combat Hostiles . | . . . . Follow-up Attacks . | . . . . Damage Inflicted 943 | . 679 264 . Guns 816 | . 613 203 . Cannons . | . . . . Explosions 116 | . 57 59 . Melee . | . . . . Ramming 11 | . 9 2 . Kinetic . | . . . . Thermal 116 | . 57 59 . Explosive . | . . . . Electromagnetic 816 | . 613 203 . Impact . | . . . . Slashing . | . . . . Piercing . | . . . . Highest Corruption . | . . . . Average Corruption . | . . . . Corruption Purged . | . . . . Corruption Blocked . | . . . . Overload Shots . | . . . . Overflow Damage 13 | . 13 . . Projectiles . | . . . . Explosions 13 | . 13 . . Melee . | . . . . Knockbacks 1 | . 1 . . Impact 1 | . 1 . . Kinetic . | . . . . Secondary . | . . . . Self-Inflicted Damage 80 | . 40 40 . Shots 2 | . 1 1 . Rammed 2 | . 1 1 . Targets Rammed 2 | . 1 1 . Kicked . | . . . . Crushed . | . . . . Highest Temperature 150 | . 150 132 . Average Temperature 42 | . 40 50 . Received Heat Transfer 177 | . 102 33 42 Siege Activations . | . . . . Robots Corrupted . | . . . . Combat Hostiles . | . . . . Parts Fried 1 | . 1 . . Impact Corruptions . | . . . . Robots Melted . | . . . . Combat Hostiles . | . . . . Parts Melted . | . . . . Heat Transferred 250 | . 150 100 . Parts Sabotaged . | . . . . Parts Stolen . | . . . . Parts Stripped . | . . . . Power Chain Reactions 3 | . 2 1 . Alert | -11 -10 -10 -9 ------- Run | Yrd Mat Min Mat Peak Influence 141 | . 128 141 69 Initial 54 | . . 35 54 Average 61 | . 63 70 59 Maximum Alert Level . | . . . . Low Security (%) 100 | 100 100 100 100 Level 1 . | . . . . Level 2 . | . . . . Level 3 . | . . . . Level 4 . | . . . . Level 5 . | . . . . High Security . | . . . . Max Security . | . . . . Squads Dispatched 2 | . 2 . . Investigation . | . . . . Extermination . | . . . . Reinforcement 2 | . 2 . . Assault . | . . . . Garrison . | . . . . Intercept . | . . . . Searches Triggered . | . . . . Construction Impeded . | . . . . Haulers Reinforced . | . . . . Active Scanning Responses . | . . . . Cargo Convoy Interrupts . | . . . . Stealth | -11 -10 -10 -9 --------- Run | Yrd Mat Min Mat Distress Signals . | . . . . Communications Jammed . | . . . . Distress Signals . | . . . . Times Spotted 18 | . 12 4 2 Peak Tracking Total 3 | . 3 2 2 Tactical Retreats . | . . . . Traps | -11 -10 -10 -9 ------- Run | Yrd Mat Min Mat Traps Triggered 1 | . 1 . . Indirectly . | . . . . Trap Hack Attempts . | . . . . Triggered . | . . . . Disarmed . | . . . . Reprogrammed . | . . . . Reused . | . . . . Traps Extracted . | . . . . Installed . | . . . . Triggered . | . . . . Most Traps Carried 1 | . . 1 1 Machines | -11 -10 -10 -9 ---------- Run | Yrd Mat Min Mat Machines Disabled 1 | . 1 . . Max in Single Turn 1 | . 1 . . Machines Repaired . | . . . . Machines Dismantled . | . . . . Machines Sabotaged . | . . . . Overloaded Fab Kills . | . . . . Hacking | -11 -10 -10 -9 --------- Run | Yrd Mat Min Mat Machines Accessed 4 | . 4 . . Terminals 3 | . 3 . . Fabricators . | . . . . Repair Stations 1 | . 1 . . Recycling Units . | . . . . Scanalyzers . | . . . . Garrison Access . | . . . . Total Hacks 10 | . 10 . . Successful 4 | . 4 . . Failed 6 | . 6 . . Catastrophic . | . . . . Database Lockouts . | . . . . Manual 6 | . 6 . . Terminals 6 | . 6 . . Fabricators . | . . . . Repair Stations 4 | . 4 . . Recycling Units . | . . . . Scanalyzers . | . . . . Garrison Access . | . . . . Terminal Hacks . | . . . . Fabricator Hacks . | . . . . Repair Station Hacks 3 | . 3 . . Scan Component 2 | . 2 . . Repair 1 | . 1 . . Recycling Unit Hacks . | . . . . Scanalyzer . | . . . . Garrison Access Hacks . | . . . . Unauthorized Hacks 1 | . 1 . . Terminals 1 | . 1 . . Operators 1 | . 1 . . Fabricators . | . . . . Repair Stations . | . . . . Recycling Units . | . . . . Scanalyzers . | . . . . Garrison Access . | . . . . Data Cores Recovered . | . . . . Used . | . . . . Hacking Detections 4 | . 4 . . Full Trace Events . | . . . . Feedback Events . | . . . . Feedback Blocked . | . . . . Robot Schematics Acquired . | . . . . Robots Built . | . . . . Authchips . | . . . . Time . | . . . . Total Robot Build Rating . | . . . . Part Schematics Acquired . | . . . . Parts Built . | . . . . Authchips . | . . . . Time . | . . . . Total Part Build Rating . | . . . . Parts Repaired 1 | . 1 . . Time 53 | . 53 . . Parts Recycled . | . . . . Recycled Matter . | . . . . Retrieved Matter . | . . . . Retrieved Components . | . . . . Parts Scanalyzed . | . . . . Part Schematics Acquired . | . . . . Parts Damaged . | . . . . Bothacking | -11 -10 -10 -9 ------------ Run | Yrd Mat Min Mat Used RIF Installer . | . . . . Robots Hacked . | . . . . Non-combat . | . . . . Combat . | . . . . Robot Hacks Applied . | . . . . Relay Couplers Released . | . . . . Fabnet Peak Effective % . | . . . . Robots Rewired . | . . . . Allies Hacked . | . . . . Hacks Repelled . | . . . . Allies | -11 -10 -10 -9 -------- Run | Yrd Mat Min Mat Total Allies . | . . . . Largest Group . | . . . . Highest-Rated Group . | . . . . Highest-Rated Ally . | . . . . Total Orders . | . . . . Ally Attacks . | . . . . Total Damage . | . . . . Kills . | . . . . Allies Corrupted . | . . . . Allies Melted . | . . . . Intel | -11 -10 -10 -9 ------- Run | Yrd Mat Min Mat Robot Analysis Total . | . . . . Derelict Logs Recovered 1 | . . 1 . Drone Launches . | . . . . Drone Recoveries . | . . . . Exploration | -11 -10 -10 -9 ------------- Run | Yrd Mat Min Mat Turns Passed 1653 | 84 1135 372 62 Spaces Moved 867 | 49 583 197 38 Core 9 | 9 . . . Treads 858 | 40 583 197 38 Legs . | . . . . Wheels . | . . . . Hover . | . . . . Flight . | . . . . Fastest Speed 50 | 50 160 160 160 Average Speed 158 | 139 160 160 160 Slowest Speed 160 | 160 160 160 160 Overloaded Moves . | . . . . Propulsion Burnouts . | . . . . Robots Hopped . | . . . . Cave-ins Triggered . | . . . . Exploration Rate (%) 29 | 4 70 39 5 Regions Visited 3 Branch Regions 1 Pre-discovered Areas . | . . . . Known Exits Taken . | . . . . Unknown Exits Taken 3 | 1 1 1 . Scrap Searched . | . . . . Spaces Dug . | . . . . Terrain Destroyed 11 | . 5 6 . Melee . | . . . . Projectile . | . . . . AOE 11 | . 5 6 . Terrain Rammed . | . . . . Walls Destroyed . | . . . . Machines Disabled . | . . . . Actions | -11 -10 -10 -9 --------- Run | Yrd Mat Min Mat Total 1078 | 62 736 241 39 Wait 134 | 6 100 28 . Move 864 | 48 582 196 38 Hop . | . . . . Pick Up 15 | 2 11 2 . Fast Attach 13 | 6 6 1 . Attach 4 | . 2 1 1 Detach . | . . . . Swap 1 | . 1 . . Drop 10 | . 7 3 . Fire 35 | . 26 9 . Melee . | . . . . Ram . | . . . . Kick . | . . . . Crush 2 | . 1 1 . Escape Stasis . | . . . . Rewire . | . . . . Trap . | . . . . Miscellaneous . | . . . . Route ------- -11/Scrapyard -10/Materials (discovered 4 exits: [*Mat x2] / [*Min x2]) -10/Mines -9/Materials History --------- Turn | Location | Event 40 | -11/Scrapyard | Discovered new exit (range 15) 85 | -11/Scrapyard | Entered Materials 252 | -10/Materials | Discovered new exit (range 15) 304 | -10/Materials | Build established: Mutant 580 | -10/Materials | Discovered new exit (range 11) 713 | -10/Materials | Discovered new exit (range 16) 810 | -10/Materials | Repaired Corrupted Hacking Suite 830 | -10/Materials | Discovered new exit (range 13) 1220 | -10/Materials | Entered Mines 1236 | -10/Mines | Met a Derelict bent on vengeance 1246 | -10/Mines | Found a hidden stash of uninstalled traps 1355 | -10/Mines | Received a Rocket Launcher from a helpful Derelict 1385 | -10/Mines | Learned Materials interactive machine intel 1577 | -10/Mines | Discovered new exit (range 7) 1592 | -10/Mines | Entered Materials 1592 | -9/Materials | Evolved 2 slots: Utility x2 1593 | -9/Materials | Loaded intel: 18 interactive machine locations 1654 | -9/Materials | Self-destructed Last Messages --------------- 01388_ K-01 Serf collects debris. 01528_ EM Shotgun destroyed. 01532_ G-47 Trooper misfires. 01532_ G-47 Trooper destroyed. 01537_ Dropped Lgt. Nuclear Core. 01541_ Acquired Lgt. Nuclear Core. 01542_ R-06 Scavenger collects Aluminum Leg. 01556_ G-34 Mercenary destroyed. 01560_ Acquired Corrupted Aluminum Leg. 01562_ Dropped Corrupted Aluminum Leg. 01577_ EXIT=FOUND PARAMETERS=UTILITY+2 LOCATION=UNKNOWN GOAL=ESCAPE Loading Materials interactive machine intel (x18)... 01635_ K-01 Serf collects debris. 01636_ K-01 Serf destroyed. 01638_ K-01 Serf collects debris. 01647_ EM Shotgun destroyed. 01648_ K-01 Serf collects debris. Map ----- +----------------------------------------------------+ | ?????????????????????????????????????????????????? | | ?????????????????????????????????????????????????? | | ???????????????????????????""????????????????????? | | ???????????????????????????"T????????????????????? | | ???????????????????????????""????????????????????? | | ?????????????????????????????????????????????????? | | ???????????????????????????????????T?????????????? | | ?????????????????????????????????????????????????? | | ?????????????????????????????????????????????????? | | ?????????????????????????????????????????????????? | | ?????????????????????????????????????????????????? | | ?????????????????????????????????????????????????? | | ?????????????????????????????????????????????????? | | ?????????????????????????????????????????????????? | | ??????????????????????????????????""?????????????? | | ??????????????????????????????????Y"?????????????? | | ??????????????????????????????????""?????????????? | | ???????????????????? ??????????????????????????? | | ????????????????????## ??????????????????????????? | | ???????????????????? # ??????????????????????????? | | ???????????????????? # ??????????????????????????? | | ???????????????????? # #### ##??????????? | | ???????????????????? # a ###########+##??????????? | | ???????????????????? + # # ##??????????? | | ???????????????????? # # k # ##??????????? | | ???????????????????? # @ g * # ##??????????? | | ???????????????????? # # %! Y ##??????????? | | ???????????????????? # ########### ############# | | ???????????????????? # ########### ############# | | ???????????????????? # | | ???????????????????? # | | ????????????????????## | | ????????????????????###+#############/############ | | ???????????????????? ##### """ ######## | | ???????????????????????????????## "T" ##?????? | | ???????????????????????????????## """ " " ##?????? | | ???????????????????????????????## """ ##?????? | | ???????????????????????????????## """ ##?????? | | ???????????????????????????????## =!! ##?????? | | ??????????????????????????????## !!! ##?????? | | ??????????????????????????????###?? !!! ##?????? | | ??????????????????????????????###??#########?????? | | ???????????????????????????????????#########?????? | | ?????????????????????????????????????????????????? | | ?????????????????????????????????????????????????? | | ?????????????????????????????????????????????????? | | | | | | | | | +----------------------------------------------------+ Best States ------------- Heat Dissipation 28 Coolant Potential 50 Energy Generation 14 Energy Capacity 160 Matter Stores 300 Matter Capacity 300 Sight Range 16 Terrain Scan Density 10 Evasion (%) 50 Targeting Accuracy 5 Recoil Reduction 2 Item Schematics ----------------- None Robot Schematics ------------------ None Fabricated ------------ Nothing Alien Tech Used ----------------- None Achievements -------------- None Challenges ------------ None Game ------ Seed SigixGravmagRipper Manual? 0 Play Time 00:11:19 Cumulative 55.4 hours Start 2024.12.02 @ 17:22:58 End 2025.01.13 @ 11:28:48 Sessions 3 Manual Loads 0 Difficulty Rogue Special Mode None Game No. 69 Rogue 69 Adventurer 0 Explorer 0 Win Type - Total 0 Types 0/0/0/0/0/0/0/0/0 Lore% 36 Gallery% 45 Achievement% 37 Wizard Run 0 Options --------- Layout 0 ASCII 0 Keyboard 0 Movement Arrows Keybinds 0 Fullscreen 1 Font 18/SmallcapsGlow Map View 76x50 Zoom Use 0% Tactical HUD 1 Map Filters NONE Filters NONE Steam 0 RUN: 28adf79d-9561-4e08-ba80-333aea0d122e